fUST/lending_fUST_20240325
["ID","MTS","AMOUNT","RATE_DAILY","PERIOD"]
[320357263,1711324151419,-162.017143,0.00036309,101]
[320357264,1711324151438,-162.017143,0.00036309,110]
[320357265,1711324151457,-162.017143,0.00036309,119]
[320357266,1711324151477,-24900.0,0.0003881,2]
[320357267,1711324151497,-4452.709231,0.00041691,120]
[320357268,1711324151516,-173.818084,0.00042331,2]
[320357269,1711324151536,-694.88,0.000453,120]
[320357270,1711324151558,-150.89437394,0.00046873,2]
[320357271,1711324151579,-700.40598325,0.000479,30]
[320357272,1711324151599,-176.12692744,0.00048402,30]
[320357273,1711324151620,-2581.16323871,0.0004864,120]
[320357314,1711324232087,-162.01910123,0.00033,4]
[320357316,1711324232097,-1845.8305959,0.0004864,120]
[320357319,1711324232109,-25.71539639,0.0004864,120]
[320357320,1711324232118,-5000.0,0.00052272,3]
[320357323,1711324232128,-606.58813155,0.000528,2]
[320357324,1711324232137,-8563.6171504,0.000529,30]
[320357326,1711324232148,-3453.48957541,0.000529,30]
[320357369,1711324238101,-154.90705577,0.00052898,4]
[320357371,1711324238111,-5839.96534436,0.000529,30]
[320357514,1711324240269,-6607.30002287,0.000529,30]
[320357517,1711324240280,-8837.54009492,0.000529,30]
[320357519,1711324240289,-20665.76604571,0.000529,30]
[320357521,1711324240298,-161.2153197,0.00053997,60]
[320357522,1711324240307,-606.58813155,0.00054643,2]
[320357524,1711324240317,-500.0,0.00054693,120]
[320357526,1711324240326,-500.0,0.00054693,120]
[320357528,1711324240335,-500.0,0.00054693,120]
[320357530,1711324240344,-500.0,0.00054693,120]
[320357532,1711324240353,-500.0,0.00054693,120]
[320357533,1711324240362,-361.44688641,0.00054693,120]
[320357535,1711324240370,-3831.40447636,0.00054694,2]
[320357539,1711324240435,-3837.66432007,0.00054694,2]
[320357592,1711324243316,-10686.78567625,0.00054694,2]
[320357593,1711324243326,-208.01509305,0.00054791,30]
[320357594,1711324243335,-433.67148363,0.00054792,4]
[320357595,1711324243345,-155.56649131,0.00054793,4]
[320357596,1711324243354,-155.77922761,0.00054793,4]
[320357597,1711324243363,-400.0,0.00054793,2]
[320357598,1711324243373,-236.63473284,0.00054793,2]
[320357599,1711324243383,-324.36253623,0.00054793,4]
[320357600,1711324243394,-455.72261123,0.00054793,4]
[320357601,1711324243406,-2872.44789679,0.00054793,30]
[320357602,1711324243415,-188.23133374,0.00054793,2]
[320357603,1711324243424,-284.76674436,0.00054793,4]
[320357604,1711324243433,-308.37113245,0.00054793,4]
[320357605,1711324243442,-1580.3448193,0.00054793,4]
[320357606,1711324243451,-546.2830717,0.00054793,4]
[320357607,1711324243460,-1007.83114656,0.00054793,4]
[320357608,1711324243470,-323.54056831,0.00054793,4]
[320357609,1711324243479,-271.20282732,0.00054793,4]
[320357610,1711324243488,-500.0,0.00054793,120]
[320357611,1711324243498,-500.0,0.00054793,120]
[320357612,1711324243508,-292.45241137,0.00054793,120]
[320357613,1711324243518,-500.0,0.00054793,120]
[320357614,1711324243528,-204.94966569,0.00054793,120]
[320357615,1711324243538,-500.0,0.00054793,30]
[320357616,1711324243548,-478.29656293,0.00054793,120]
[320357617,1711324243557,-1139.02302545,0.00054794,61]
[320357618,1711324243567,-500.0,0.00054794,120]
[320357619,1711324243577,-501.86706236,0.00054794,120]
[320357620,1711324243586,-500.0,0.00054794,120]
[320357621,1711324243596,-500.0,0.00054794,120]
[320357622,1711324243606,-500.0,0.00054794,120]
[320357623,1711324243616,-500.0,0.00054794,120]
[320357624,1711324243625,-500.0,0.00054794,120]
[320357625,1711324243634,-500.0,0.00054794,120]
[320357626,1711324243645,-500.0,0.00054794,120]
[320357627,1711324243654,-500.0,0.00054794,120]
[320357628,1711324243663,-500.0,0.00054794,120]
[320357629,1711324243673,-289.09981388,0.00054794,120]
[320357630,1711324243683,-500.0,0.00054794,120]
[320357631,1711324243692,-500.0,0.00054794,120]
[320357632,1711324243701,-500.0,0.00054794,120]
[320357633,1711324243711,-500.0,0.00054794,120]
[320357634,1711324243722,-500.0,0.00054794,120]
[320357635,1711324243732,-1000.0,0.00054794,120]
[320357636,1711324243741,-1000.0,0.00054794,120]
[320357637,1711324243751,-179.68306167,0.00054794,120]
[320357638,1711324243760,-250.0,0.00054794,120]
[320357639,1711324243769,-500.0,0.00054794,120]
[320357640,1711324243778,-500.0,0.00054794,120]
[320357641,1711324243787,-500.0,0.00054794,120]
[320357642,1711324243797,-500.0,0.00054794,120]
[320357643,1711324243806,-500.0,0.00054794,120]
[320357644,1711324243815,-500.0,0.00054794,120]
[320357645,1711324243825,-500.0,0.00054794,120]
[320357646,1711324243834,-31.88095587,0.00054794,120]
[320357647,1711324243878,-468.11904413,0.00054794,120]
[320357648,1711324243887,-1220.97,0.00054794,120]
[320357649,1711324243896,-500.0,0.00054794,120]
[320357650,1711324243906,-500.0,0.00054794,120]
[320357651,1711324243916,-500.0,0.00054794,120]
[320357652,1711324243925,-500.0,0.00054794,120]
[320357653,1711324243935,-500.0,0.00054794,120]
[320357654,1711324243944,-264.89293579,0.00054794,120]
[320357655,1711324243955,-500.0,0.00054794,120]
[320357656,1711324243964,-500.0,0.00054794,120]
[320357657,1711324243974,-500.0,0.00054794,120]
[320357658,1711324243984,-500.0,0.00054794,120]
[320357659,1711324243995,-500.0,0.00054794,120]
[320357660,1711324244006,-500.0,0.00054794,120]
[320357661,1711324244016,-500.0,0.00054794,120]
[320357662,1711324244025,-500.0,0.00054794,120]
[320357663,1711324244036,-500.0,0.00054794,120]
[320357664,1711324244046,-500.0,0.00054794,120]
[320357665,1711324244054,-500.0,0.00054794,120]
[320357666,1711324244064,-500.0,0.00054794,120]
[320357667,1711324244073,-500.0,0.00054794,120]
[320357668,1711324244082,-500.0,0.00054794,120]
[320357669,1711324244091,-508.76254765,0.00054794,120]
[320357670,1711324244100,-500.0,0.00054794,120]
[320357671,1711324244109,-500.0,0.00054794,120]
[320357672,1711324244119,-500.0,0.00054794,120]
[320357673,1711324244128,-500.0,0.00054794,120]
[320357674,1711324244250,-500.0,0.00054794,2]
[320357675,1711324244260,-500.0,0.00054794,60]
[320357676,1711324244270,-810.19,0.00054794,120]
[320357677,1711324244279,-500.0,0.00054794,120]
[320357678,1711324244288,-735.68,0.00054794,120]
[320357679,1711324244297,-500.0,0.00054794,120]
[320357680,1711324244306,-500.0,0.00054794,120]
[320357681,1711324244316,-500.0,0.00054794,120]
[320357682,1711324244325,-500.0,0.00054794,120]
[320357683,1711324244334,-793.58,0.00054794,120]
[320357684,1711324244343,-640.11568288,0.00054794,120]
[320357685,1711324244352,-1577.37,0.00054794,120]
[320357686,1711324244361,-500.0,0.00054794,120]
[320357687,1711324244371,-754.64,0.00054794,120]
[320357688,1711324244381,-2792.5,0.00054794,120]
[320357689,1711324244390,-1016.0,0.00054794,120]
[320357690,1711324244398,-4691.78,0.00054794,120]
[320357691,1711324244407,-1289.87,0.00054794,2]
[320357692,1711324244417,-1038.61,0.00054794,120]
[320357693,1711324244426,-1500.0,0.00054794,120]
[320357694,1711324244435,-500.0,0.00054794,120]
[320357695,1711324244444,-500.0,0.00054794,120]
[320357696,1711324244453,-500.0,0.00054794,120]
[320357697,1711324244462,-1615.9,0.00054794,120]
[320357698,1711324244471,-500.0,0.00054794,120]
[320357699,1711324244480,-7864.34,0.00054794,120]
[320357700,1711324244489,-500.0,0.00054794,120]
[320357701,1711324244498,-1245.7,0.00054794,120]
[320357702,1711324244507,-500.0,0.00054794,120]
[320357703,1711324244516,-582.88,0.00054794,120]
[320357704,1711324244525,-1033.11,0.00054794,120]
[320357705,1711324244535,-500.0,0.00054794,120]
[320357706,1711324244546,-500.0,0.00054794,120]
[320357707,1711324244555,-500.0,0.00054794,120]
[320357708,1711324244563,-500.0,0.00054794,120]
[320357709,1711324244573,-500.0,0.00054794,120]
[320357710,1711324244581,-1669.79,0.00054794,120]
[320357711,1711324244591,-755.27,0.00054794,120]
[320357712,1711324244600,-500.0,0.00054794,120]
[320357713,1711324244609,-972.13,0.00054794,120]
[320357714,1711324244620,-7979.07,0.00054794,120]
[320357715,1711324244629,-500.0,0.00054794,120]
[320357716,1711324244638,-799.14,0.00054794,120]
[320357717,1711324244647,-500.0,0.00054794,120]
[320357718,1711324244657,-500.0,0.00054794,120]
[320357719,1711324244666,-1594.66517705,0.00054794,120]
[320357799,1711324477346,2117.94540766,0.0002,120]
[320357800,1711324556740,155.78570411,0.0002,2]
[320357801,1711324557068,312.94649189,0.0002,2]
[320357803,1711324965223,887.58959278,0.000198,2]
[320357804,1711324990111,24900.0,0.00025089,2]
[320357805,1711325020349,597.4111035,0.00025038,2]
[320357806,1711325029703,2044.7333689,0.00025038,2]
[320357807,1711325048976,2320.0,0.00025037,2]
[320357811,1711325197332,200.0,0.00025055,2]
[320357813,1711325222481,158.9916691,0.0002492,2]
[320357814,1711325223007,1771.32547101,0.00024787,2]
[320357815,1711325238152,-500.0,0.00025663,2]
[320357831,1711325303674,-270.49584508,0.00025657,2]
[320357832,1711325303697,-685.75009172,0.00025658,2]
[320357833,1711325303719,-470.93164976,0.00025659,2]
[320357834,1711325303740,-154.90705577,0.0002566,2]
[320357835,1711325303763,-160.82846355,0.0002566,2]
[320357836,1711325303785,-1301.1712291,0.00025661,2]
[320357837,1711325303807,-3443.12849161,0.00025661,2]
[320357838,1711325303830,-780.14221718,0.0002567,2]
[320357839,1711325303852,-300.0,0.00025671,2]
[320357840,1711325303875,-177.406822,0.00025697,2]
[320357841,1711325304869,302.52792033,0.00025657,2]
[320357843,1711325359275,-300.0,0.0002711,2]
[320357844,1711325359298,-7572.53186211,0.00027111,2]
[320357845,1711325360191,-19414.22013813,0.00027111,2]
[320357846,1711325360210,-197.24044154,0.00027399,2]
[320357847,1711325360230,-10218.69895356,0.000274,2]
[320357848,1711325360250,-20213.24150261,0.000275,2]
[320357849,1711325360272,-447.16440414,0.00027587,2]
[320357850,1711325360293,-500.0,0.00027971,2]
[320357851,1711325360314,-500.0,0.00027971,2]
[320357852,1711325360334,-317.93854294,0.00027971,2]
[320357853,1711325360355,-500.0,0.00027971,2]
[320357854,1711325360377,-500.0,0.00027971,2]
[320357855,1711325360397,-500.0,0.00027971,2]
[320357856,1711325360417,-386.55086507,0.00027971,2]
[320357857,1711325360438,-595.17099608,0.00027971,2]
[320357858,1711325360457,-16422.18242786,0.000285,2]
[320357859,1711325360476,-197.24044153,0.00028554,2]
[320357860,1711325360496,-3689.51507847,0.0002877,2]
[320357861,1711325360516,-2000.0,0.00028843,2]
[320357862,1711325360535,-2000.0,0.0002894,2]
[320357863,1711325360555,-2000.0,0.00029038,2]
[320357864,1711325360575,-2000.0,0.00029136,2]
[320357865,1711325360595,-2495.761823,0.00029234,2]
[320357866,1711325360615,-197.24044153,0.00029708,2]
[320357867,1711325360637,-161.21531971,0.00029763,2]
[320357868,1711325360658,-215.63811279,0.00029799,2]
[320357869,1711325360679,-325.53978275,0.00029799,2]
[320357870,1711325360700,-155.75645605,0.00029799,2]
[320357871,1711325360720,-155.4104141,0.00029799,2]
[320357872,1711325360741,-156.80145919,0.00029799,2]
[320357873,1711325360762,-5541.00282732,0.00029801,2]
[320357874,1711325360784,-157.64663537,0.00029801,2]
[320357875,1711325360806,-405.49788746,0.00029801,2]
[320357876,1711325360826,-931.26926936,0.00029801,2]
[320357877,1711325360846,-187.70475787,0.00029801,2]
[320357878,1711325360867,-1955.99190053,0.00029801,2]
[320357879,1711325360888,-877.08592788,0.00029801,2]
[320357880,1711325360908,-863.98813889,0.00029801,2]
[320357881,1711325360928,-603.28713544,0.00029801,2]
[320357882,1711325360948,-617.43803039,0.00029801,2]
[320357883,1711325360968,-322.69074111,0.00029801,2]
[320357884,1711325360988,-170.49852087,0.00029801,2]
[320357885,1711325361008,-304.95131354,0.00029801,2]
[320357886,1711325361028,-3507.17728851,0.00029801,2]
[320357887,1711325361048,-165.30965242,0.00029801,2]
[320357888,1711325361069,-1477.06322297,0.00029801,2]
[320357889,1711325361090,-1919.62840368,0.00029801,2]
[320357890,1711325361111,-400.0,0.00029801,2]
[320357891,1711325361133,-1721.66047521,0.00029801,2]
[320357892,1711325361154,-155.17729292,0.00029801,2]
[320357893,1711325361174,-328.0835039,0.00029801,2]
[320357894,1711325361194,-155.29569217,0.00029801,2]
[320357895,1711325361216,-276.57932444,0.00029801,2]
[320357896,1711325361236,-155.23250415,0.00029801,2]
[320357897,1711325361256,-155.19318995,0.00029801,2]
[320357898,1711325361278,-155.19641036,0.00029801,2]
[320357899,1711325361298,-210.90956841,0.00029801,2]
[320357900,1711325361318,-412.52107908,0.00029801,2]
[320357901,1711325361337,-205.23034575,0.00029801,2]
[320357902,1711325361359,-155.16582354,0.00029801,2]
[320357903,1711325361380,-602.27949783,0.00029801,2]
[320357904,1711325361400,-1571.99705884,0.00029801,2]
[320357905,1711325361420,-291.04503375,0.00029801,2]
[320357906,1711325361440,-815.66428976,0.00029801,2]
[320357907,1711325361460,-682.729052,0.00029801,2]
[320357908,1711325361479,-1886.39734478,0.00029801,2]
[320357909,1711325361499,-180.04968881,0.00029801,2]
[320357910,1711325361519,-534.71774984,0.00029801,2]
[320357911,1711325361538,-155.33061501,0.00029801,2]
[320357912,1711325361557,-155.10060793,0.00029801,2]
[320357913,1711325361577,-682.748276,0.00029807,2]
[320357914,1711325361597,-155.2643379,0.00029807,2]
[320357915,1711325361617,-469.42556672,0.00029807,2]
[320357916,1711325361636,-687.05229368,0.00029807,2]
[320357917,1711325361656,-161.04287904,0.00029807,2]
[320357918,1711325361675,-2022.61541948,0.00029807,2]
[320357919,1711325361695,-742.67630891,0.00029807,2]
[320357920,1711325361716,-271.50754137,0.00029807,2]
[320357921,1711325361738,-297.27069398,0.00029807,2]
[320357922,1711325361759,-244.82415149,0.00029808,2]
[320357923,1711325361781,-500.0,0.00029808,2]
[320357924,1711325361801,-500.0,0.00029808,2]
[320357925,1711325361821,-275.5684823,0.00029808,2]
[320357926,1711325361842,-159.10734564,0.00029808,2]
[320357927,1711325361864,-569.51151273,0.00029809,3]
[320357928,1711325361885,-180.0,0.00029821,2]
[320357929,1711325361904,-911.9627385,0.0003123,2]
[320357930,1711325361925,-447.16440414,0.0003174,2]
[320357931,1711325361946,-177.29038647,0.00033,4]
[320357932,1711325361966,-176.12692744,0.00035457,7]
[320357933,1711325361986,-2226.354615,0.00035616,120]
[320357934,1711325362008,-447.16440414,0.00035894,2]
[320357935,1711325362031,-447.16440414,0.00040047,2]
[320357936,1711325362052,-926.1876078,0.000405,30]
[320357937,1711325362074,-176.12692744,0.00041107,30]
[320357938,1711325362094,-2226.354615,0.00041553,120]
[320357939,1711325362118,-5025.3711855,0.00042,120]
[320358108,1711325438429,-209.44635932,0.00027707,2]
[320358109,1711325438439,-177.24122179,0.00029807,2]
[320358110,1711325438448,-2124.0126802,0.00029808,2]
[320358111,1711325438459,-1266.6499088,0.00029808,2]
[320358112,1711325438471,-6444.22903183,0.00029808,2]
[320358114,1711325438481,-13302.22624946,0.00029808,60]
[320358115,1711325438542,-687.8,0.00029808,60]
[320358120,1711325440744,-1610.35282495,0.00029807,2]
[320358121,1711325440753,-12970.7790905,0.00029808,60]
[320358163,1711325444963,-51836.59757106,0.00029808,60]
[320358164,1711325444973,-222.81718563,0.00029808,10]
[320358166,1711325444982,-5441.30299117,0.00029808,30]
[320358168,1711325444991,-18792.19805504,0.00029808,7]
[320358170,1711325445000,-14229.07674151,0.00029808,2]
[320358172,1711325445009,-209.44635932,0.00032707,2]
[320358174,1711325445018,-678.03896051,0.00035,2]
[320358175,1711325445028,-783.57894867,0.00041999,30]
[320358176,1711325445037,-332.38649242,0.00041999,31]
[320358177,1711325445046,-282.47457671,0.00041999,31]
[320358178,1711325445055,-500.0,0.00041999,31]
[320358180,1711325445064,-217.80749083,0.00041999,31]
[320358181,1711325445073,-500.0,0.00041999,31]
[320358183,1711325445082,-284.75575636,0.00042,3]
[320358184,1711325445092,-141456.40425455,0.00042,120]
[320358185,1711325445101,-161.21531971,0.00042999,30]
[320358186,1711325445110,-176.12692744,0.00043036,30]
[320358187,1711325445121,-447.16440414,0.000442,2]
[320358188,1711325445130,-150.89437394,0.00044916,2]
[320358189,1711325445141,-301.78874788,0.00045671,4]
[320358190,1711325445150,-2226.354615,0.00047489,120]
[320358191,1711325445161,-161.21531971,0.00048703,30]
[320358192,1711325445172,-167.39705751,0.0005,60]
[320358193,1711325445182,-222.10082955,0.0005,120]
[320358194,1711325445193,-2226.354615,0.00053425,120]
[320358195,1711325445205,-1699.85,0.00054,120]
[320358196,1711325445215,-500.0,0.00054793,30]
[320358197,1711325445224,-155.02325349,0.00054794,2]
[320358198,1711325445234,-4977.07600778,0.00054794,4]
[320358199,1711325445244,-500.0,0.00054794,120]
[320358200,1711325445253,-500.0,0.00054794,120]
[320358201,1711325445263,-500.0,0.00054794,120]
[320358202,1711325445272,-500.0,0.00054794,120]
[320358203,1711325445281,-500.0,0.00054794,120]
[320358204,1711325445291,-500.0,0.00054794,120]
[320358205,1711325445301,-500.0,0.00054794,120]
[320358206,1711325445313,-500.0,0.00054794,120]
[320358207,1711325445323,-500.0,0.00054794,120]
[320358208,1711325445333,-500.0,0.00054794,120]
[320358209,1711325445343,-500.0,0.00054794,120]
[320358210,1711325445352,-500.0,0.00054794,120]
[320358211,1711325445362,-500.0,0.00054794,120]
[320358212,1711325445372,-500.0,0.00054794,120]
[320358213,1711325445382,-1000.0,0.00054794,120]
[320358214,1711325445391,-1000.0,0.00054794,120]
[320358215,1711325445401,-1000.0,0.00054794,120]
[320358216,1711325445410,-257.77637702,0.00054794,120]
[320358217,1711325445420,-500.0,0.00054794,120]
[320358218,1711325445430,-500.0,0.00054794,120]
[320358219,1711325445439,-205.59202209,0.00054794,120]
[320358220,1711325445449,-385.46760975,0.00054794,120]
[320358221,1711325445458,-500.0,0.00054794,120]
[320358222,1711325445467,-500.0,0.00054794,120]
[320358223,1711325445477,-1000.0,0.00054794,120]
[320358224,1711325445486,-1000.0,0.00054794,120]
[320358225,1711325445496,-1000.0,0.00054794,120]
[320358226,1711325445505,-1000.0,0.00054794,120]
[320358227,1711325445514,-1000.0,0.00054794,120]
[320358228,1711325445523,-1000.0,0.00054794,120]
[320358229,1711325445532,-1000.0,0.00054794,120]
[320358230,1711325445542,-843.11116239,0.00054794,120]
[320358231,1711325445551,-1226.08,0.00054794,120]
[320358232,1711325445561,-760.51,0.00054794,120]
[320358233,1711325445570,-500.0,0.00054794,120]
[320358234,1711325445579,-500.0,0.00054794,120]
[320358235,1711325445589,-500.0,0.00054794,120]
[320358236,1711325445598,-500.0,0.00054794,120]
[320358237,1711325445608,-500.0,0.00054794,120]
[320358238,1711325445617,-500.0,0.00054794,120]
[320358239,1711325445626,-500.0,0.00054794,120]
[320358240,1711325445635,-500.0,0.00054794,120]
[320358241,1711325445644,-500.0,0.00054794,120]
[320358242,1711325445653,-500.0,0.00054794,120]
[320358243,1711325445663,-501.33515441,0.00054794,120]
[320358244,1711325445672,-500.0,0.00054794,120]
[320358245,1711325445681,-500.0,0.00054794,120]
[320358246,1711325445690,-500.0,0.00054794,120]
[320358247,1711325445702,-500.0,0.00054794,120]
[320358248,1711325445711,-501.60684069,0.00054794,120]
[320358249,1711325445720,-500.0,0.00054794,120]
[320358250,1711325445729,-500.0,0.00054794,120]
[320358251,1711325445739,-500.0,0.00054794,120]
[320358252,1711325445748,-500.0,0.00054794,120]
[320358253,1711325445758,-500.0,0.00054794,120]
[320358254,1711325445767,-500.0,0.00054794,120]
[320358255,1711325445776,-500.0,0.00054794,120]
[320358256,1711325445785,-776.43,0.00054794,120]
[320358257,1711325445794,-500.0,0.00054794,120]
[320358258,1711325445804,-500.0,0.00054794,120]
[320358259,1711325445813,-705.03,0.00054794,120]
[320358260,1711325445822,-194.46850166,0.00054794,120]
[320358262,1711325445832,-500.0,0.00054794,120]
[320358264,1711325445841,-154.93802479,0.00054794,7]
[320358266,1711325445850,-500.0,0.00054794,120]
[320358267,1711325445859,-498.89592569,0.00054794,120]
[320358269,1711325445868,-227.61660107,0.00054794,120]
[320358271,1711325445878,-6622.8,0.00054794,120]
[320358273,1711325445887,-500.0,0.00054794,120]
[320358274,1711325445896,-500.0,0.00054794,120]
[320358275,1711325446024,-500.0,0.00054794,120]
[320358276,1711325446034,-560.60682279,0.00054794,120]
[320358277,1711325446043,-500.0,0.00054794,120]
[320358278,1711325446052,-2846.59,0.00054794,120]
[320358279,1711325446062,-500.0,0.00054794,120]
[320358280,1711325446071,-183.26950145,0.00054794,120]
[320358281,1711325446080,-500.0,0.00054794,120]
[320358282,1711325446090,-1318.3,0.00054794,2]
[320358283,1711325446099,-500.0,0.00054794,120]
[320358284,1711325446109,-807.65,0.00054794,120]
[320358285,1711325446118,-5381.25,0.00054794,120]
[320358286,1711325446127,-222.8820941,0.00054794,120]
[320358287,1711325446137,-500.0,0.00054794,120]
[320358288,1711325446146,-500.0,0.00054794,120]
[320358289,1711325446156,-500.0,0.00054794,120]
[320358290,1711325446166,-500.0,0.00054794,120]
[320358291,1711325446175,-3593.11890158,0.00054794,120]
[320358292,1711325446191,-4790.93109842,0.00054794,120]
[320358293,1711325446203,-500.0,0.00054794,120]
[320358294,1711325446212,-599.0,0.00054794,120]
[320358295,1711325446222,-584.32890636,0.00054794,120]
[320358297,1711325446232,-500.0,0.00054794,120]
[320358299,1711325446241,-1466.27,0.00054794,120]
[320358300,1711325446251,-500.0,0.00054794,120]
[320358302,1711325446260,-1500.0,0.00054794,120]
[320358304,1711325446269,-1115.33,0.00054794,120]
[320358306,1711325446278,-500.0,0.00054794,120]
[320358308,1711325446288,-500.0,0.00054794,120]
[320358310,1711325446301,-500.0,0.00054794,120]
[320358312,1711325446310,-1847.12,0.00054794,120]
[320358313,1711325446319,-1022.55,0.00054794,120]
[320358314,1711325446328,-1100.38,0.00054794,120]
[320358315,1711325446338,-500.0,0.00054794,120]
[320358316,1711325446347,-366.92651925,0.00054794,120]
[320358318,1711325446356,-500.0,0.00054794,120]
[320358320,1711325446365,-4216.57,0.00054794,120]
[320358322,1711325446374,-1120.96,0.00054794,120]
[320358324,1711325446383,-333.60183831,0.00054794,120]
[320358325,1711325446410,-166.39816169,0.00054794,120]
[320358326,1711325446419,-500.0,0.00054794,120]
[320358327,1711325446428,-624.06,0.00054794,120]
[320358328,1711325446437,-500.0,0.00054794,120]
[320358329,1711325446448,-500.0,0.00054794,120]
[320358330,1711325446456,-500.0,0.00054794,120]
[320358331,1711325446465,-810.69,0.00054794,120]
[320358332,1711325446475,-1927.92,0.00054794,120]
[320358333,1711325446484,-9111.24,0.00054794,120]
[320358334,1711325446494,-378.38,0.00054794,120]
[320358335,1711325446503,-500.0,0.00054794,120]
[320358336,1711325446513,-500.0,0.00054794,120]
[320358337,1711325446522,-556.16,0.00054794,120]
[320358338,1711325446530,-918.22,0.00054794,120]
[320358339,1711325446539,-500.0,0.00054794,120]
[320358340,1711325446548,-479.46742238,0.00054794,120]
[320358341,1711325446557,-500.0,0.00054794,120]
[320358342,1711325446566,-500.0,0.00054794,120]
[320358343,1711325446576,-10078.32,0.00054794,90]
[320358344,1711325446585,-500.0,0.00054794,120]
[320358345,1711325446594,-500.0,0.00054794,120]
[320358346,1711325446603,-500.0,0.00054794,120]
[320358347,1711325446612,-500.0,0.00054794,120]
[320358348,1711325446621,-1402.19,0.00054794,120]
[320358349,1711325446630,-500.0,0.00054794,120]
[320358350,1711325446640,-2496.0,0.00054794,120]
[320358351,1711325446649,-2020.74,0.00054794,21]
[320358352,1711325446658,-923.88,0.00054794,120]
[320358353,1711325446668,-500.0,0.00054794,120]
[320358354,1711325446677,-500.0,0.00054794,120]
[320358355,1711325446687,-500.0,0.00054794,120]
[320358356,1711325446698,-500.0,0.00054794,120]
[320358357,1711325446708,-840.21,0.00054794,120]
[320358358,1711325446717,-597.07,0.00054794,120]
[320358359,1711325446727,-500.0,0.00054794,120]
[320358360,1711325446737,-744.28,0.00054794,120]
[320358361,1711325446746,-500.0,0.00054794,120]
[320358362,1711325446756,-500.0,0.00054794,120]
[320358363,1711325446765,-959.23,0.00054794,120]
[320358364,1711325446774,-500.0,0.00054794,120]
[320358365,1711325446782,-502.4605563,0.00054794,120]
[320358366,1711325446792,-500.0,0.00054794,60]
[320358367,1711325446801,-528.16,0.00054794,120]
[320358368,1711325446810,-500.0,0.00054794,120]
[320358369,1711325446818,-723.62,0.00054794,120]
[320358370,1711325446827,-776.66,0.00054794,120]
[320358371,1711325446836,-1943.48,0.00054794,120]
[320358372,1711325446845,-500.0,0.00054794,120]
[320358373,1711325446854,-1712.86,0.00054794,120]
[320358374,1711325446863,-1712.86,0.00054794,120]
[320358375,1711325446872,-1712.86,0.00054794,120]
[320358376,1711325446881,-1712.86,0.00054794,120]
[320358377,1711325446890,-1712.86,0.00054794,120]
[320358378,1711325446899,-1712.86,0.00054794,120]
[320358379,1711325446908,-1712.86,0.00054794,120]
[320358380,1711325446917,-1712.86,0.00054794,120]
[320358381,1711325446926,-1712.86,0.00054794,120]
[320358382,1711325446935,-1712.86,0.00054794,120]
[320358383,1711325446945,-1712.86,0.00054794,120]
[320358384,1711325446954,-1712.86,0.00054794,120]
[320358385,1711325446964,-1712.86,0.00054794,120]
[320358386,1711325446973,-1712.86,0.00054794,120]
[320358387,1711325446982,-1712.86,0.00054794,120]
[320358388,1711325446991,-1712.86,0.00054794,120]
[320358389,1711325447000,-1712.86,0.00054794,120]
[320358390,1711325447009,-1712.86,0.00054794,120]
[320358391,1711325447019,-1712.86,0.00054794,120]
[320358392,1711325447027,-1712.86,0.00054794,120]
[320358393,1711325447036,-819.59,0.00054794,120]
[320358394,1711325447045,-500.0,0.00054794,120]
[320358395,1711325447054,-1712.86,0.00054794,120]
[320358396,1711325447064,-500.98,0.00054794,120]
[320358397,1711325447073,-1712.86,0.00054794,120]